bitfinex/quotes_BTCUSD_20230120
["timestamp","ask_amount","ask_price","bid_price","bid_amount"]
[1674190921016,2.20185815,20991.0,20990.0,0.03470711]
[1674190922028,2.0203589,20991.0,20990.0,0.03470711]
[1674190922575,1.7263589,20991.0,20990.0,0.03470711]
[1674190924276,2.0189589,20991.0,20990.0,0.03470711]
[1674190925981,1.7288789,20991.0,20990.0,0.03470711]
[1674190928289,1.7288789,20991.0,20981.0,0.02243117]
[1674190928290,0.476479,20988.0,20981.0,0.02243117]
[1674190928516,0.47720169,20983.0,20980.0,0.02394327]
[1674190928757,4.27820566,20982.0,20978.0,0.02875602]
[1674190929018,0.01962915,20978.0,20976.0,0.02574951]
[1674190929324,0.01962915,20978.0,20976.0,0.29711951]
[1674190929528,0.01962915,20978.0,20976.0,0.33311951]
[1674190929782,0.01962915,20978.0,20977.0,0.317529]
[1674190930586,0.01962915,20978.0,20977.0,0.709979]
[1674190930844,0.01962915,20978.0,20977.0,0.571629]
[1674190931100,0.01962915,20978.0,20977.0,0.871629]
[1674190931345,0.19123802,20978.0,20977.0,0.443529]
[1674190931622,0.01962915,20978.0,20977.0,0.443529]
[1674190931892,0.28861712,20978.0,20977.0,0.136]
[1674190932147,0.62961083,20978.0,20977.0,0.036]
[1674190932405,1.18382342,20978.0,20977.0,0.036]
[1674190932692,1.92218943,20978.0,20977.0,0.036]
[1674190933198,1.92218943,20978.0,20977.0,0.0001]
[1674190933538,3.05836587,20978.0,20977.0,0.0001]
[1674190933739,1.92178943,20978.0,20977.0,0.0001]
[1674190934035,1.89292772,20978.0,20977.0,0.0001]
[1674190934288,2.36969043,20978.0,20977.0,0.0001]
[1674190934604,0.1,20977.0,20976.0,0.02555951]
[1674190934816,2.61316769,20977.0,20976.0,0.02555951]
[1674190935067,2.61316769,20977.0,20976.0,0.06155951]
[1674190935068,3.14394486,20977.0,20976.0,0.06155951]
[1674190935318,2.36884267,20977.0,20976.0,0.06155951]
[1674190935642,2.36884267,20977.0,20976.0,0.06088085]
[1674190936122,2.26884267,20977.0,20976.0,0.06088085]
[1674190936370,2.76734267,20977.0,20976.0,0.06088085]
[1674190936873,3.05154267,20977.0,20971.0,0.036]
[1674190937098,3.05154267,20977.0,20967.0,0.01073565]
[1674190937099,0.13654,20972.0,20967.0,0.01073565]
[1674190937379,3.032219,20971.0,20967.0,0.01073565]
[1674190937642,1.399767,20970.0,20967.0,0.01073565]
[1674190937949,0.819625,20969.0,20967.0,0.00573565]
[1674190938175,0.321233,20968.0,20967.0,0.10322565]
[1674190938433,0.15,20973.0,20967.0,0.27710565]
[1674190938710,0.09405629,20974.0,20969.0,0.0772]
[1674190938969,0.09405629,20974.0,20970.0,0.19432097]
[1674190939258,0.09405629,20974.0,20971.0,0.19432097]
[1674190939852,0.09405629,20974.0,20971.0,0.27152097]
[1674190940375,0.09405629,20974.0,20971.0,0.0772]
[1674190940759,0.09405629,20974.0,20972.0,0.30676131]
[1674190941059,0.09405629,20974.0,20973.0,0.1536]
[1674190941319,0.09405629,20974.0,20973.0,0.306743]
[1674190941320,0.26555426,20974.0,20973.0,0.306743]
[1674190941575,0.26555426,20974.0,20970.0,0.1]
[1674190941954,0.09405629,20974.0,20972.0,0.09915535]
[1674190942148,0.09405629,20974.0,20973.0,0.0772]
[1674190942684,0.09405629,20974.0,20973.0,0.483945]
[1674190943776,0.09405629,20974.0,20973.0,0.48405091]
[1674190944635,0.09405629,20974.0,20973.0,0.483945]
[1674190945169,0.26555426,20974.0,20973.0,0.1]
[1674190945437,0.90017426,20974.0,20969.0,0.1]
[1674190945690,0.90017426,20974.0,20968.0,0.61992]
[1674190945691,0.88272849,20973.0,20968.0,0.4482]
[1674190946084,0.49896097,20972.0,20968.0,0.4482]
[1674190946308,0.48952187,20971.0,20967.0,0.00573565]
[1674190946545,0.78856497,20970.0,20967.0,0.00573565]
[1674190947084,0.317895,20969.0,20967.0,0.00573565]
[1674190947350,0.329955,20968.0,20967.0,0.00573565]
[1674190947615,0.62682,20973.0,20967.0,0.10322565]
[1674190947897,0.57085329,20974.0,20968.0,0.19432097]
[1674190948162,0.09405629,20974.0,20970.0,0.0772]
[1674190948458,0.0001109,20973.0,20970.0,0.19432097]
[1674190948729,0.327854,20973.0,20968.0,0.5376]
[1674190948999,0.327854,20973.0,20968.0,0.73192097]
[1674190949000,0.17149797,20973.0,20968.0,0.73192097]
[1674190949292,0.17149797,20973.0,20969.0,0.1]
[1674190949531,0.09405629,20974.0,20969.0,0.29432097]
[1674190950033,0.26555426,20974.0,20969.0,0.29432097]
[1674190950335,0.324151,20973.0,20969.0,0.29432097]
[1674190950566,0.321814,20972.0,20969.0,0.1]
[1674190950837,0.26555426,20974.0,20969.0,0.1]
[1674190951097,0.26555426,20974.0,20969.0,0.29432097]
[1674190951626,0.323653,20973.0,20969.0,0.29432097]
[1674190951912,0.09405629,20974.0,20970.0,0.19432097]
[1674190952189,0.09405629,20974.0,20971.0,0.29432097]
[1674190952495,0.09405629,20974.0,20973.0,0.2312]
[1674190952753,0.09405629,20974.0,20973.0,0.154]
[1674190953033,0.09405629,20974.0,20973.0,0.452942]
[1674190953316,0.09405629,20974.0,20973.0,0.852942]
[1674190953571,0.09405629,20974.0,20973.0,0.552942]
[1674190954991,0.09405629,20974.0,20973.0,1.329745]
[1674190955267,0.09405629,20974.0,20973.0,1.029745]
[1674190955583,0.26555426,20974.0,20973.0,0.483542]
[1674190955808,0.09405629,20974.0,20973.0,0.483842]
[1674190957138,0.09416719,20974.0,20973.0,0.483842]
[1674190957449,0.09405629,20974.0,20973.0,0.483842]
[1674190959339,0.09405629,20974.0,20973.0,2.227045]
[1674190959613,0.09405629,20974.0,20973.0,1.632945]
[1674190959877,0.09405629,20974.0,20973.0,1.932945]
[1674190961529,0.09405629,20974.0,20973.0,1.632945]
[1674190962065,6.29e-06,20974.0,20973.0,1.932945]
[1674190962066,0.01962915,20978.0,20974.0,0.1]
[1674190962329,0.01962915,20978.0,20975.0,0.953506]
[1674190962602,0.01962915,20978.0,20977.0,0.0772]
[1674190963195,0.01962915,20978.0,20977.0,0.383872]
[1674190963714,0.01962915,20978.0,20977.0,0.306672]
[1674190967155,0.01962915,20978.0,20977.0,0.406672]
[1674190968186,0.01962915,20978.0,20977.0,0.706672]
[1674190968435,0.01962915,20978.0,20977.0,0.406672]
[1674190968947,0.01962915,20978.0,20977.0,0.533972]
[1674190969240,0.01962915,20978.0,20977.0,0.833972]
[1674190969481,0.01962915,20978.0,20977.0,0.961272]
[1674190969969,0.01962915,20978.0,20977.0,0.661272]
[1674190970286,0.01962915,20978.0,20977.0,0.406672]
[1674190971035,0.01962915,20978.0,20977.0,0.1]
[1674190971271,0.01962915,20978.0,20977.0,0.406672]
[1674190971585,0.01962915,20978.0,20977.0,0.306672]
[1674190971870,0.01962915,20978.0,20976.0,0.1]
[1674190973496,0.01962915,20978.0,20977.0,0.306672]
[1674190974597,0.01962915,20978.0,20974.0,0.47677]
[1674190974598,0.19123802,20978.0,20974.0,0.47677]
[1674190974872,0.17149797,20977.0,20974.0,0.47677]
[1674190975133,0.17149797,20977.0,20975.0,0.1]
[1674190975395,0.01974005,20978.0,20975.0,0.1]
[1674190976224,0.01974005,20978.0,20974.0,0.57677]
[1674190976750,0.19123802,20978.0,20974.0,0.57677]
[1674190977025,0.01974005,20978.0,20974.0,0.57677]
[1674190977300,0.01974005,20978.0,20975.0,0.1]
[1674190977831,0.01962915,20978.0,20976.0,0.19432097]
[1674190978086,0.01962915,20978.0,20975.0,0.576757]
[1674190978350,0.01974005,20978.0,20975.0,0.576757]
[1674190978607,0.01974005,20978.0,20975.0,0.580757]
[1674190978608,0.06574005,20978.0,20975.0,0.580757]
[1674190979948,0.06562915,20978.0,20975.0,0.580757]
[1674190980491,0.0001109,20977.0,20975.0,0.580757]
[1674190981003,0.0001109,20977.0,20975.0,0.104]
[1674190981004,0.17149797,20976.0,20975.0,0.104]
[1674190981263,0.0066849,20977.0,20975.0,0.004]
[1674190981264,0.7768239,20977.0,20975.0,0.004]
[1674190981535,0.336743,20976.0,20975.0,0.004]
[1674190981829,0.336743,20976.0,20971.0,0.1]
[1674190981830,1.290213,20976.0,20971.0,0.1]
[1674190982090,0.50143597,20975.0,20971.0,0.1]
[1674190982362,0.318898,20974.0,20971.0,0.1]
[1674190982629,0.315976,20973.0,20971.0,0.1]
[1674190982902,0.17149797,20974.0,20971.0,0.1]
[1674190983211,0.17149797,20974.0,20970.0,0.1]
[1674190983212,0.47149797,20974.0,20970.0,0.1]
[1674190983469,0.32434,20973.0,20969.0,0.576885]
[1674190983734,0.49463497,20972.0,20969.0,0.476885]
[1674190983990,0.313699,20971.0,20968.0,0.02710304]
[1674190984276,0.336154,20970.0,20968.0,0.12710304]
[1674190984764,0.953569,20974.0,20968.0,0.60401704]
[1674190985031,0.50367,20975.0,20969.0,0.32162097]
[1674190985032,0.3202,20975.0,20969.0,0.32162097]
[1674190985296,0.17149797,20975.0,20972.0,0.1261]
[1674190985557,0.476738,20976.0,20972.0,0.19432097]
[1674190985829,0.0001109,20975.0,20972.0,0.19432097]
[1674190986083,0.0911109,20975.0,20972.0,0.19432097]
[1674190986343,0.0001109,20975.0,20970.0,0.476869]
[1674190986610,0.17160887,20975.0,20970.0,0.67118997]
[1674190986912,0.0001109,20975.0,20971.0,0.1]
[1674190987224,0.01962915,20978.0,20972.0,1.386599]
[1674190987467,0.091,20975.0,20973.0,0.19432097]
[1674190987727,0.01962915,20978.0,20973.0,0.576793]
[1674190987981,0.01962915,20978.0,20974.0,0.19432097]
[1674190988254,0.0001109,20977.0,20974.0,0.19432097]
[1674190988542,0.0001109,20977.0,20973.0,0.576793]
[1674190988806,0.17149797,20976.0,20973.0,0.1]
[1674190989074,0.17149797,20976.0,20971.0,0.576847]
[1674190989331,0.17149797,20975.0,20971.0,0.576847]
[1674190989900,0.091,20976.0,20971.0,0.77116797]
[1674190990179,0.091,20976.0,20972.0,0.1]
[1674190990180,0.17149797,20976.0,20972.0,0.1]
[1674190990439,0.091,20975.0,20972.0,0.29432097]
[1674190990711,0.091,20975.0,20972.0,0.1]
[1674190991490,0.476717,20977.0,20972.0,0.1]
[1674190991744,0.091,20976.0,20972.0,0.29432097]
[1674190992007,0.83671497,20977.0,20972.0,0.1]
[1674190992271,0.091,20975.0,20972.0,0.29432097]
[1674190992549,0.476717,20977.0,20972.0,0.1]
[1674190992550,0.64821497,20977.0,20972.0,0.1]
[1674190992787,0.73921497,20977.0,20972.0,0.29432097]
[1674190993048,0.73921497,20977.0,20973.0,0.19432097]
[1674190993049,0.091,20977.0,20973.0,0.19432097]
[1674190993331,0.091,20977.0,20974.0,0.306727]
[1674190993584,0.091,20977.0,20975.0,0.534007]
[1674190993860,0.091,20977.0,20975.0,0.704044]
[1674190994118,0.01962915,20978.0,20976.0,0.306691]
[1674190994376,0.01962915,20978.0,20975.0,0.704044]
[1674190994635,0.01962915,20978.0,20976.0,0.306688]
[1674190994929,0.091,20977.0,20975.0,0.704044]
[1674190995226,0.01962915,20978.0,20976.0,0.306688]
[1674190995483,0.11074005,20978.0,20975.0,0.704044]
[1674190995748,0.01962915,20978.0,20976.0,0.306688]
[1674190996014,0.091,20977.0,20975.0,0.704044]
[1674190996279,0.01962915,20978.0,20976.0,0.306688]
[1674190996584,0.11062915,20978.0,20975.0,0.704044]
[1674190996838,0.11062915,20978.0,20976.0,0.306688]
[1674190997105,0.11062915,20978.0,20975.0,0.704044]
[1674190997691,0.10262915,20978.0,20976.0,0.307688]
[1674190998108,0.01962915,20978.0,20977.0,0.476712]
[1674190998109,0.10262915,20978.0,20977.0,0.476712]
[1674190998341,0.10262915,20978.0,20977.0,0.783385]
[1674190999002,0.01962915,20978.0,20977.0,0.783385]
[1674190999260,0.10262915,20978.0,20977.0,0.884385]
[1674191000547,0.0017814,20983.0,20977.0,1.55590766]
[1674191000554,0.0017814,20983.0,20977.0,2.45991966]
[1674191000557,0.0017814,20983.0,20978.0,0.10262]
[1674191000854,0.0017814,20983.0,20979.0,2.99133072]
[1674191001100,0.0017814,20983.0,20980.0,0.50282097]
[1674191001356,0.0017814,20983.0,20982.0,0.2534]
[1674191001654,0.0017814,20983.0,20982.0,2.113183]
[1674191001928,0.0807814,20983.0,20982.0,2.213183]
[1674191002193,0.1597814,20983.0,20982.0,2.213183]
[1674191002454,0.0017814,20983.0,20982.0,1.921683]
[1674191002713,0.0807814,20983.0,20982.0,1.622683]
[1674191003487,0.0807814,20983.0,20982.0,1.495483]
[1674191003746,0.07986645,20983.0,20982.0,1.495483]
[1674191004275,0.07986645,20983.0,20982.0,1.795483]
[1674191005109,0.07986645,20983.0,20982.0,1.360783]
[1674191006955,0.07986645,20983.0,20982.0,1.488083]
[1674191007202,0.07986645,20983.0,20982.0,1.48818887]
[1674191007731,0.07986645,20983.0,20982.0,1.78818887]
[1674191009100,0.07986645,20983.0,20982.0,1.79668887]
[1674191010142,0.07986645,20983.0,20982.0,1.49668887]
[1674191010145,0.07997735,20983.0,20982.0,1.260783]
[1674191010425,0.07986645,20983.0,20982.0,1.260783]
[1674191014125,0.07986645,20983.0,20982.0,1.388083]
[1674191014398,0.07986645,20983.0,20982.0,1.688083]
[1674191017355,0.07986645,20983.0,20982.0,1.388083]
[1674191018195,0.07986645,20983.0,20982.0,1.260783]
[1674191022422,0.07986645,20983.0,20982.0,1.687483]
[1674191022996,0.07986645,20983.0,20982.0,1.94750741]
[1674191023280,0.07986645,20983.0,20982.0,2.08380894]
[1674191023544,0.07187981,20983.0,20982.0,2.08380894]
[1674191023810,0.00196523,20986.0,20983.0,0.1]
[1674191024075,0.00196523,20986.0,20984.0,1.556959]
[1674191024366,0.00196523,20986.0,20985.0,0.406534]
[1674191024651,0.00196523,20986.0,20985.0,1.359594]
[1674191026538,0.00196523,20986.0,20985.0,1.773594]
[1674191026801,0.00196523,20986.0,20985.0,2.16053091]
[1674191027906,0.00196523,20986.0,20985.0,3.2720326]
[1674191028173,0.00196523,20986.0,20985.0,3.6175326]
[1674191028923,0.00196523,20986.0,20985.0,3.61801817]
[1674191030038,0.00196523,20986.0,20985.0,2.081594]
[1674191030230,0.00196523,20986.0,20985.0,2.381594]
[1674191030778,0.00196523,20986.0,20985.0,2.64211725]
[1674191031349,0.00196523,20986.0,20985.0,2.51541725]
[1674191031616,0.00196523,20986.0,20985.0,2.254894]
[1674191031878,0.00196523,20986.0,20985.0,2.51593552]
[1674191032689,0.00196523,20986.0,20985.0,2.64213552]
[1674191033208,0.00196523,20986.0,20985.0,3.61783721]
[1674191034026,0.00196523,20986.0,20985.0,4.57065599]
[1674191034575,0.00196523,20986.0,20985.0,2.55829569]
[1674191034837,0.00196523,20986.0,20985.0,1.608294]
[1674191035620,0.00196523,20986.0,20985.0,1.559194]
[1674191035902,0.00196523,20986.0,20985.0,1.473594]
[1674191037714,0.00196523,20986.0,20985.0,1.773594]
[1674191037992,0.00196523,20986.0,20985.0,1.473594]
[1674191039393,0.00196523,20986.0,20985.0,1.373594]
[1674191039394,0.00207613,20986.0,20985.0,1.373594]
[1674191039669,0.00196523,20986.0,20985.0,1.06706]
[1674191040199,0.00196523,20986.0,20985.0,0.95306]
[1674191040764,0.00196523,20986.0,20985.0,1.365592]
[1674191042624,0.00196523,20986.0,20985.0,3.3852846]
[1674191042920,0.00196523,20986.0,20985.0,3.38512204]
[1674191043169,0.00196523,20986.0,20985.0,3.66233478]
[1674191043466,0.00196523,20986.0,20985.0,3.47974031]
[1674191043735,0.00176871,20986.0,20985.0,4.87289338]
[1674191044276,0.00176871,20986.0,20985.0,4.64570794]
[1674191044536,0.00176871,20986.0,20985.0,4.3614003]
[1674191044537,8.71e-06,20986.0,20985.0,4.3614003]
[1674191044803,8.71e-06,20986.0,20985.0,5.55988657]
[1674191045062,1.042e-05,20987.0,20986.0,0.79273]
[1674191045334,1.042e-05,20987.0,20986.0,2.94512772]
[1674191045607,1.042e-05,20987.0,20986.0,4.59570815]
[1674191045862,1.042e-05,20987.0,20986.0,4.33946485]
[1674191046171,1.042e-05,20987.0,20986.0,4.31096121]
[1674191046463,1.042e-05,20987.0,20986.0,4.41696121]
[1674191047555,1.042e-05,20987.0,20986.0,4.7016093]
[1674191047826,1.042e-05,20987.0,20986.0,4.92932482]
[1674191048361,1.042e-05,20987.0,20986.0,4.92932371]
[1674191048888,1.042e-05,20987.0,20986.0,4.7016093]
[1674191049410,1.042e-05,20987.0,20986.0,4.7793093]
[1674191049676,1.042e-05,20987.0,20986.0,4.71046121]
[1674191050203,0.00320462,20992.0,20990.0,0.4985]
[1674191050471,0.00320462,20992.0,20991.0,3.55990099]
[1674191050757,0.00320462,20992.0,20991.0,3.81258002]
[1674191051047,0.00320462,20992.0,20991.0,4.11900902]
[1674191051637,0.00320462,20992.0,20991.0,3.96373302]
[1674191051889,0.00320462,20992.0,20991.0,3.70310669]
[1674191052418,0.00320462,20992.0,20991.0,3.96383641]
[1674191052697,0.00320462,20992.0,20991.0,3.88693641]
[1674191052965,0.00320462,20992.0,20991.0,3.62620669]
[1674191053223,0.00320462,20992.0,20991.0,3.88679655]
[1674191053833,0.00320462,20992.0,20991.0,5.20106682]
[1674191054068,0.00320462,20992.0,20991.0,5.03035649]
[1674191054872,0.00320462,20992.0,20991.0,5.20106682]
[1674191055118,0.00320462,20992.0,20991.0,5.03035649]
[1674191055379,4.62e-06,20992.0,20991.0,5.26853649]
[1674191055640,4.62e-06,20992.0,20991.0,5.65321808]
[1674191055921,4.62e-06,20992.0,20991.0,5.84753905]
[1674191056181,0.00320462,20995.0,20991.0,6.44066295]
[1674191056470,0.00320462,20995.0,20994.0,0.6529]
[1674191056998,0.00320462,20995.0,20994.0,4.10617465]
[1674191057003,0.00320462,20995.0,20994.0,3.91185368]
[1674191057530,0.00320462,20995.0,20994.0,3.91215949]
[1674191057820,0.17470259,20995.0,20994.0,2.374583]
[1674191058107,0.00320462,20995.0,20994.0,2.317683]
[1674191058640,0.00320462,20995.0,20994.0,4.56964151]
[1674191058901,0.00320462,20995.0,20994.0,3.8785575]
[1674191059174,0.00080462,20995.0,20994.0,3.9554575]
[1674191059698,0.00080462,20995.0,20994.0,4.2554575]
[1674191059973,0.00080462,20995.0,20994.0,5.58850924]
[1674191060227,6.2e-07,20995.0,20994.0,5.58850924]
[1674191060495,0.00320462,20996.0,20994.0,4.2554575]
[1674191060765,0.00320462,20996.0,20995.0,1.92981643]
[1674191061029,0.00320462,20996.0,20995.0,3.32992243]
[1674191062128,0.00320462,20996.0,20995.0,3.43592243]
[1674191062648,0.00320462,20996.0,20995.0,4.38825508]
[1674191062918,0.00320462,20996.0,20995.0,3.43592243]
[1674191063751,2.59e-06,20999.0,20996.0,0.10460395]
[1674191064008,2.59e-06,20999.0,20998.0,0.31529]
[1674191064273,2.59e-06,20999.0,20998.0,2.31537995]
[1674191064547,2.59e-06,20999.0,20998.0,3.12018495]
[1674191064999,2.59e-06,20999.0,20998.0,3.12020495]
[1674191065561,0.00388242,21001.0,21000.0,0.4985]
[1674191065824,0.00388242,21001.0,21000.0,3.22870061]
[1674191066101,0.00388242,21001.0,21000.0,3.53497061]
[1674191066623,2.42e-06,21001.0,21000.0,3.53497061]
[1674191067170,2.42e-06,21001.0,21000.0,2.81904169]
[1674191067464,2.42e-06,21001.0,21000.0,2.32054169]
[1674191067732,2.42e-06,21001.0,21000.0,2.92404169]
[1674191067999,2.42e-06,21001.0,21000.0,2.81904169]
[1674191068253,2.42e-06,21001.0,21000.0,2.92404169]
[1674191068595,2.42e-06,21001.0,21000.0,3.22404169]
[1674191071939,2.42e-06,21001.0,21000.0,1.94834]
[1674191072220,2.42e-06,21001.0,21000.0,1.93984]
[1674191072505,2.42e-06,21001.0,21000.0,1.73484]
[1674191073067,2.42e-06,21001.0,21000.0,1.51757]
[1674191073335,2.42e-06,21001.0,21000.0,1.82384]
[1674191073578,2.42e-06,21001.0,21000.0,2.87197438]
[1674191073847,2.42e-06,21001.0,21000.0,3.35817438]
[1674191074408,2.42e-06,21001.0,21000.0,3.80487438]
[1674191074673,2.42e-06,21001.0,21000.0,3.90187438]
[1674191074954,2.42e-06,21001.0,21000.0,3.80487438]
[1674191075255,2.42e-06,21001.0,21000.0,3.90187438]
[1674191075517,2.42e-06,21001.0,21000.0,3.80487438]
[1674191075774,2.42e-06,21001.0,21000.0,3.90187438]
[1674191077092,2.42e-06,21001.0,21000.0,3.54244169]
[1674191077347,2.42e-06,21001.0,21000.0,3.63944169]
[1674191077615,2.42e-06,21001.0,21000.0,3.56274169]
[1674191077917,2.42e-06,21001.0,21000.0,3.06424169]
[1674191078434,2.42e-06,21001.0,21000.0,2.61754169]
[1674191079498,2.42e-06,21001.0,21000.0,2.13184]
[1674191079768,2.42e-06,21001.0,21000.0,2.36992]
[1674191080286,2.42e-06,21001.0,21000.0,1.83184]
[1674191081057,2.42e-06,21001.0,21000.0,1.73484]
[1674191081329,2.42e-06,21001.0,21000.0,1.82484]
[1674191081584,2.42e-06,21001.0,21000.0,1.73484]
[1674191081857,2.42e-06,21001.0,21000.0,1.82484]
[1674191082110,2.42e-06,21001.0,21000.0,2.12484]
[1674191082373,2.42e-06,21001.0,21000.0,1.82484]
[1674191082636,2.42e-06,21001.0,21000.0,2.12484]
[1674191082915,2.42e-06,21001.0,21000.0,1.82484]
[1674191083731,0.09760332,21001.0,21000.0,1.82484]
[1674191084078,2.42e-06,21001.0,21000.0,1.51857]
[1674191084896,2.42e-06,21001.0,21000.0,1.82484]
[1674191086433,0.00011332,21001.0,21000.0,1.34865]
[1674191086686,2.42e-06,21001.0,21000.0,1.04238]
[1674191087191,2.42e-06,21001.0,21000.0,1.34865]
[1674191087437,2.42e-06,21001.0,21000.0,1.64865]
[1674191087690,0.00261111,21003.0,21001.0,8.234e-05]
[1674191087973,0.00261111,21003.0,21002.0,0.476145]
[1674191088240,0.00261111,21003.0,21002.0,0.782382]
[1674191088577,0.00261111,21003.0,21002.0,1.258527]
[1674191088738,0.00261111,21003.0,21002.0,1.29444468]
[1674191090566,0.00261111,21003.0,21002.0,1.38444468]
[1674191095417,0.00261111,21003.0,21002.0,2.33663721]
[1674191095679,0.00261111,21003.0,21002.0,1.38444468]
[1674191095946,0.00261111,21003.0,21002.0,3.61388214]
[1674191096332,0.00261111,21003.0,21002.0,4.14864627]
[1674191096482,0.00261111,21003.0,21002.0,4.03499393]
[1674191096731,0.00261111,21003.0,21002.0,3.78382533]
[1674191096992,0.00261111,21003.0,21002.0,3.39414493]
[1674191097242,0.00261111,21003.0,21002.0,2.2710092]
[1674191097497,0.00261111,21003.0,21002.0,3.10921992]
[1674191097990,0.00261111,21003.0,21002.0,2.15704468]
[1674191099282,0.00261111,21003.0,21002.0,2.63318968]
[1674191099539,0.00261111,21003.0,21002.0,3.57687531]
[1674191099784,0.00261111,21003.0,21002.0,3.57687774]
[1674191101573,0.00261111,21003.0,21002.0,3.27687875]
[1674191101828,0.00261111,21003.0,21002.0,2.32468968]
[1674191102088,0.00261111,21003.0,21002.0,2.62468968]
[1674191102337,0.00261111,21003.0,21002.0,2.32468968]
[1674191102584,0.00261111,21003.0,21002.0,3.69084532]
[1674191103839,0.00261111,21003.0,21002.0,3.86178682]
[1674191104087,0.00261111,21003.0,21002.0,3.69084532]
[1674191104859,0.00261111,21003.0,21002.0,3.98877057]
[1674191105141,0.00261111,21003.0,21002.0,4.25828757]
[1674191105399,0.00261111,21003.0,21002.0,3.97343262]
[1674191105660,0.00214532,21003.0,21002.0,4.79301911]
[1674191105944,0.00214532,21003.0,21002.0,4.21999262]
[1674191106250,0.00214532,21003.0,21002.0,5.97251715]
[1674191106525,0.00214532,21003.0,21002.0,4.21999262]
[1674191107071,0.00214532,21003.0,21002.0,4.9252023]
[1674191107331,0.00214532,21003.0,21002.0,4.69719431]
[1674191108138,0.00214532,21003.0,21002.0,5.21018125]
[1674191108408,0.00214532,21003.0,21002.0,4.47456011]
[1674191108668,0.00214532,21003.0,21002.0,4.27056468]
[1674191108953,0.00214532,21003.0,21002.0,4.36256468]
[1674191109438,0.00214532,21003.0,21002.0,4.38456098]
[1674191109439,0.00214532,21003.0,21002.0,4.65422538]
[1674191109713,5.32e-06,21003.0,21002.0,4.86022328]
[1674191109994,5.32e-06,21003.0,21002.0,4.86016894]
[1674191110259,5.32e-06,21003.0,21002.0,4.86007177]
[1674191110523,5.32e-06,21003.0,21002.0,5.18757333]
[1674191111322,5.32e-06,21003.0,21002.0,4.95957913]
[1674191111588,5.32e-06,21003.0,21002.0,5.24449057]
[1674191112096,5.32e-06,21003.0,21002.0,5.35847078]
[1674191112391,5.32e-06,21003.0,21002.0,5.18751722]
[1674191112650,5.32e-06,21003.0,21002.0,5.19762913]
[1674191113219,5.32e-06,21003.0,21002.0,4.92811624]
[1674191113498,5.32e-06,21003.0,21002.0,5.21302136]
[1674191113760,5.32e-06,21003.0,21002.0,5.09905826]
[1674191114020,5.32e-06,21003.0,21002.0,5.36874237]
[1674191114602,5.32e-06,21003.0,21002.0,5.59666506]
[1674191115393,5.32e-06,21003.0,21002.0,5.42572304]
[1674191116249,5.32e-06,21003.0,21002.0,5.59644953]
[1674191116509,5.32e-06,21003.0,21002.0,5.21300608]
[1674191116769,5.32e-06,21003.0,21002.0,5.48249103]
[1674191117026,5.32e-06,21003.0,21002.0,5.36849936]
[1674191117323,5.32e-06,21003.0,21002.0,5.09901441]
[1674191117861,5.32e-06,21003.0,21002.0,4.17638855]
[1674191118128,5.32e-06,21003.0,21002.0,3.87850663]
[1674191118418,5.32e-06,21003.0,21002.0,3.39280494]
[1674191118740,5.32e-06,21003.0,21002.0,3.79480075]
[1674191119246,5.32e-06,21003.0,21002.0,3.39275885]
[1674191119499,5.32e-06,21003.0,21002.0,3.40125885]
[1674191119766,5.32e-06,21003.0,21002.0,3.70125885]
[1674191120301,5.32e-06,21003.0,21002.0,4.73564465]
[1674191120564,5.32e-06,21003.0,21002.0,5.23414465]
[1674191120816,5.32e-06,21003.0,21002.0,4.94925481]
[1674191121095,5.32e-06,21003.0,21002.0,5.34792355]
[1674191121865,5.32e-06,21003.0,21002.0,5.17706552]
[1674191122938,5.32e-06,21003.0,21002.0,5.34790774]
[1674191123462,5.32e-06,21003.0,21002.0,5.17706552]
[1674191123707,5.32e-06,21003.0,21002.0,5.46182891]
[1674191123954,5.32e-06,21003.0,21002.0,4.94925481]
[1674191124250,5.32e-06,21003.0,21002.0,5.46182457]
[1674191124475,5.32e-06,21003.0,21002.0,5.23401579]
[1674191124725,0.00146809,21004.0,21003.0,0.19422468]
[1674191124984,0.00146809,21004.0,21003.0,3.28624775]
[1674191125304,0.00146809,21004.0,21003.0,3.59247941]
[1674191125480,0.00146809,21004.0,21003.0,3.47857699]
[1674191125734,0.00146809,21004.0,21003.0,3.62850604]
[1674191125993,0.00146809,21004.0,21003.0,3.51457699]
[1674191126269,0.00146809,21004.0,21003.0,3.72050552]
[1674191126549,0.00146809,21004.0,21003.0,3.71980652]
[1674191126780,0.00146809,21004.0,21003.0,2.74843483]
[1674191127041,0.00146809,21004.0,21003.0,2.86223375]
[1674191127581,0.00146809,21004.0,21003.0,2.46104233]
[1674191128352,0.09906899,21004.0,21003.0,1.38651668]
[1674191128613,0.09906899,21004.0,21003.0,1.08029868]
[1674191130541,0.09895809,21004.0,21003.0,1.08029868]
[1674191130971,0.00146809,21004.0,21003.0,1.08029868]
[1674191131524,0.00146809,21004.0,21003.0,0.98829868]
[1674191131794,0.00246809,21004.0,21003.0,1.07329868]
[1674191132327,0.00257899,21004.0,21003.0,1.07329868]
[1674191132573,0.09995809,21004.0,21003.0,1.07329868]
[1674191132840,0.01888474,21004.0,21003.0,1.07329868]
[1674191133402,0.01899564,21004.0,21003.0,1.07329868]
[1674191133696,0.01888474,21004.0,21003.0,1.07329868]
[1674191134578,0.01899564,21004.0,21003.0,1.07329868]
[1674191135258,0.01888474,21004.0,21003.0,1.07329868]
[1674191135941,0.01788474,21004.0,21003.0,0.98829868]
[1674191136379,0.01888474,21004.0,21003.0,1.07329868]
[1674191136587,0.01788474,21004.0,21003.0,0.98829868]
[1674191136830,0.01888474,21004.0,21003.0,1.07329868]
[1674191137056,0.01899564,21004.0,21003.0,1.07329868]
[1674191137937,0.01888474,21004.0,21003.0,1.07329868]
[1674191138132,0.01899564,21004.0,21003.0,1.07329868]
[1674191138357,0.01888474,21004.0,21003.0,1.07329868]
[1674191139470,0.01899564,21004.0,21003.0,1.07329868]
[1674191140388,0.01899564,21004.0,21003.0,0.59717668]
[1674191140634,0.34472464,21004.0,21003.0,0.59717668]
[1674191141172,0.42172464,21004.0,21003.0,0.59717668]
[1674191141422,0.42161374,21004.0,21003.0,0.59717668]
[1674191142455,0.42161374,21004.0,21003.0,0.12105468]
[1674191142721,0.42172464,21004.0,21003.0,0.12105468]
[1674191143797,0.42161374,21004.0,21003.0,0.12105468]
[1674191151015,1.19771274,21004.0,21003.0,0.12105468]
[1674191151275,0.97491274,21004.0,21003.0,0.12093514]
[1674191152087,0.97391274,21004.0,21003.0,0.03593514]
[1674191152626,0.99391274,21004.0,21003.0,0.04193514]
[1674191152920,0.99391274,21004.0,21003.0,0.03593514]
[1674191153193,1.01391274,21004.0,21003.0,0.04193514]
[1674191156112,1.79033174,21004.0,21003.0,0.04193514]
[1674191159236,1.49033174,21004.0,21003.0,0.04193514]
[1674191159753,1.79033174,21004.0,21003.0,0.04193514]